bitfinex/quotes_SOLUSD_20250402
["timestamp","ask_amount","ask_price","bid_price","bid_amount"]
[1743571896093,0.063,124.02,124.01,8.0638]
[1743571907412,0.0001,124.02,124.01,8.0638]
[1743571907602,0.0001,124.02,124.01,15.8329]
[1743571909604,0.0001,124.02,124.01,15.8629]
[1743571914523,0.0001,124.02,124.01,34.51254886]
[1743571915421,0.0001,124.02,124.01,15.8629]
[1743571915731,0.0001,124.02,124.01,8.0938]
[1743571916805,0.0001,124.02,124.01,0.03]
[1743571922731,0.14226157,124.02,124.01,0.03]
[1743571924705,0.28442314,124.02,124.01,0.03]
[1743571925039,0.0001,124.02,124.01,0.03]
[1743571949449,16.4973282,124.02,124.01,0.03]
[1743571949649,20.0,123.99,123.94,80.9]
[1743571949952,0.28432314,123.94,123.92,0.03]
[1743571950157,16.4972282,123.94,123.93,30.0]
[1743571950952,16.4972282,123.94,123.92,0.03]
[1743571950953,35.14687706,123.94,123.92,0.03]
[1743571951149,16.35506663,123.93,123.92,0.03]
[1743571951651,0.14216157,123.93,123.92,0.03]
[1743571955152,0.28432314,123.93,123.92,0.03]
[1743571955337,25.68241555,123.93,123.92,0.03]
[1743571955949,0.28432314,123.93,123.92,0.03]
[1743571957944,0.28432314,123.93,123.87,241.1928]
[1743571958455,0.14216157,123.92,123.87,241.1928]
[1743571959465,0.14216157,123.92,123.87,9.7228]
[1743571959762,25.54025398,123.92,123.87,9.7228]
[1743571959964,25.54025398,123.91,123.86,0.03]
[1743571960141,0.14216157,123.89,123.86,0.03]
[1743571970657,0.20516157,123.89,123.86,0.03]
[1743571972765,0.28432314,123.87,123.86,0.03]
[1743571973075,16.54597481,123.87,123.86,0.03]
[1743571973256,35.19562367,123.87,123.86,0.03]
[1743571974565,43.26852367,123.87,123.86,0.03]
[1743571975067,43.26852367,123.87,123.83,0.03]
[1743571975269,0.14216157,123.85,123.83,0.03]
[1743571975884,16.54597481,123.85,123.83,0.03]
[1743571976174,16.40381324,123.84,123.83,0.03]
[1743571976661,0.14216157,123.84,123.83,0.03]
[1743571978248,80.7,123.88,123.83,0.03]
[1743571978569,0.14216157,123.87,123.83,0.03]
[1743571978746,0.14216157,123.87,123.83,7.71]
[1743571979353,0.20516157,123.89,123.83,7.71]
[1743571979971,0.20516157,123.89,123.84,8.0749]
[1743571980359,0.20516157,123.89,123.84,28.2622]
[1743571981655,0.063,123.89,123.84,28.2622]
[1743571982263,0.063,123.89,123.84,35.9222]
[1743571982665,0.063,123.89,123.84,15.7649]
[1743571983456,0.063,123.89,123.84,8.1049]
[1743571984475,0.14216157,123.87,123.84,0.03]
[1743571985078,0.14216157,123.86,123.84,0.03]
[1743571985576,25.55223055,123.85,123.84,0.03]
[1743571985875,25.69439212,123.85,123.84,0.03]
[1743571986183,52.41824098,123.85,123.84,0.03]
[1743571989474,0.14216157,123.84,123.83,0.03]
[1743571989682,25.55223055,123.84,123.83,0.03]
[1743571989882,0.14216157,123.84,123.83,0.03]
[1743571990064,25.69439212,123.85,123.83,0.03]
[1743571990265,0.14216157,123.85,123.83,0.03]
[1743571990466,80.7,123.86,123.83,0.03]
[1743571991471,0.28432314,123.88,123.83,8.1055]
[1743571991685,0.14216157,123.88,123.84,7.7793]
[1743571992561,25.69439212,123.88,123.84,7.7793]
[1743571992763,0.28432314,123.86,123.84,7.7793]
[1743571992963,0.28432314,123.86,123.83,0.03]
[1743571993164,25.69439212,123.86,123.83,0.03]
[1743571993485,25.69439212,123.87,123.83,0.03]
[1743571994992,0.14216157,123.87,123.83,0.03]
[1743571995183,0.14216157,123.86,123.83,0.03]
[1743571996685,80.763,123.89,123.84,7.66]
[1743571998797,0.063,123.89,123.86,7.8408]
[1743572001095,0.063,123.89,123.87,8.0729]
[1743572008100,0.14216157,123.95,123.89,8.0569]
[1743572008299,0.14216157,123.95,123.9,7.64]
[1743572009304,0.14216157,123.95,123.91,8.0703]
[1743572010102,0.28432314,123.97,123.91,28.2462]
[1743572010293,0.14216157,123.98,123.91,28.2462]
[1743572012683,0.14216157,123.98,123.91,109.1462]
[1743572013084,0.14216157,123.98,123.92,8.2518]
[1743572013286,0.28432314,124.0,123.93,28.2416]
[1743572016105,25.69439212,124.0,123.93,28.2416]
[1743572017687,33.75899212,124.0,123.93,28.2416]
[1743572017986,8.34892314,124.0,123.93,28.2416]
[1743572018607,8.41192314,124.0,123.93,28.2416]
[1743572018803,0.34732314,124.0,123.93,28.2416]
[1743572021014,8.41192314,124.0,123.93,28.2416]
[1743572021208,0.34732314,124.0,123.93,28.2416]
[1743572022488,0.063,124.0,123.94,18.64964886]
[1743572022694,0.063,124.0,123.96,8.0325]
[1743572024107,0.063,124.0,123.97,8.0664]
[1743572024494,0.063,124.0,123.97,28.2325]
[1743572024903,0.063,124.0,123.97,8.0664]
[1743572030509,0.20516157,124.0,123.96,8.0668]
[1743572033211,0.14216157,123.99,123.96,8.0668]
[1743572033799,0.063,124.0,123.96,8.0668]
[1743572034413,0.063,124.0,123.94,28.239]
[1743572036017,0.28432314,123.99,123.94,8.0684]
[1743572036322,0.14216157,123.97,123.94,8.0684]
[1743572036823,0.14216157,123.97,123.93,15.8661]
[1743572037118,16.37695267,123.99,123.93,15.8661]
[1743572037415,0.28432314,123.99,123.93,15.8661]
[1743572038621,0.28432314,123.99,123.93,36.0387]
[1743572046807,0.14216157,123.97,123.93,8.0688]
[1743572047018,0.14216157,123.96,123.91,8.0703]
[1743572047520,0.14216157,123.95,123.91,8.0703]
[1743572064843,0.14216157,123.94,123.9,15.8435]
[1743572065517,0.063,123.95,123.9,116.921]
[1743572065728,0.063,123.95,123.94,28.1995]
[1743572066039,12.36935041,123.99,123.94,35.8195]
[1743572066846,12.36935041,123.99,123.95,28.2371]
[1743572067526,0.20516157,124.0,123.95,28.2371]
[1743572070252,16.58211424,124.0,123.95,15.6877]
[1743572072152,16.58211424,124.0,123.95,7.62]
[1743572072153,0.14216157,123.98,123.95,7.62]
[1743572072949,0.14216157,123.98,123.94,8.1995]
[1743572073758,0.14216157,123.98,123.95,8.0677]
[1743572074934,0.28432314,123.98,123.94,8.0684]
[1743572075153,0.14216157,123.96,123.92,8.0697]
[1743572075544,0.14216157,123.95,123.92,8.0697]
[1743572076558,0.14216157,123.95,123.91,15.927]
[1743572078740,24.44475267,123.95,123.91,7.857]
[1743572079051,24.44475267,123.95,123.9,15.6908]
[1743572079052,0.14216157,123.93,123.9,15.6908]
[1743572081363,0.14216157,123.95,123.89,28.2807]
[1743572082156,80.7,123.97,123.89,28.2807]
[1743572082338,0.14216157,123.97,123.9,18.64964886]
[1743572082543,0.14216157,123.97,123.91,7.677]
[1743572082743,0.14216157,123.97,123.92,8.0697]
[1743572083148,0.28432314,123.96,123.92,8.0697]
[1743572083752,0.14216157,123.94,123.91,1.5337]
[1743572084063,0.14216157,123.94,123.91,9.6038]
[1743572086559,96.9347911,123.96,123.91,9.6038]
[1743572086740,0.28432314,123.95,123.91,9.6038]
[1743572088860,0.28432314,123.95,123.91,9.6338]
[1743572090940,24.58711424,123.95,123.91,1.5637]
[1743572091136,24.58711424,123.95,123.91,0.03]
[1743572091763,16.51911424,123.95,123.91,8.1003]
[1743572091956,16.51911424,123.95,123.91,0.03]
[1743572092270,0.28432314,123.95,123.91,0.03]
[1743572092461,80.7,123.96,123.91,0.03]
[1743572092763,80.7,123.96,123.92,8.1499]
[1743572094461,0.14216157,123.97,123.93,8.069]
[1743572095459,0.14216157,123.98,123.93,8.069]
[1743572098369,0.14216157,123.97,123.93,8.069]
[1743572100873,0.14216157,123.98,123.93,28.2416]
[1743572101052,0.20516157,123.98,123.93,28.2416]
[1743572102584,0.063,123.98,123.93,28.2416]
[1743572102870,0.063,123.98,123.94,7.62]
[1743572104675,0.063,123.98,123.95,8.0677]
[1743572108074,0.063,123.98,123.94,15.6882]
[1743572108380,16.37695267,123.97,123.94,7.62]
[1743572108556,16.37695267,123.97,123.92,8.1499]
[1743572108758,0.14216157,123.95,123.92,16.2192]
[1743572109077,0.14216157,123.95,123.91,88.9999]
[1743572109390,0.14216157,123.95,123.91,8.0999]
[1743572109858,0.28432314,123.95,123.91,8.0999]
[1743572114392,0.28432314,123.93,123.91,0.03]
[1743572114689,24.58881424,123.92,123.91,0.03]
[1743572116502,16.51911424,123.92,123.91,0.03]
[1743572116675,0.28432314,123.92,123.91,0.03]
[1743572117200,0.14216157,123.92,123.91,0.03]
[1743572119799,0.14216157,123.93,123.91,0.03]
[1743572119998,0.28432314,123.93,123.91,0.03]
[1743572120799,0.14216157,123.93,123.91,0.03]
[1743572121104,16.51911424,123.96,123.91,7.9726]
[1743572121402,0.14216157,123.94,123.91,16.0425]
[1743572121577,0.28432314,123.94,123.91,16.0425]
[1743572122204,0.28432314,123.94,123.91,7.9726]
[1743572122403,16.51911424,123.94,123.91,0.03]
[1743572122802,8.0678,123.95,123.91,0.03]
[1743572122803,0.28432314,123.95,123.91,0.03]
[1743572123004,0.28432314,123.95,123.91,8.0999]
[1743572123195,0.14216157,123.95,123.91,8.0999]
[1743572123386,12.43235041,123.97,123.93,8.069]
[1743572123788,12.43235041,123.97,123.93,28.2416]
[1743572124483,12.43235041,123.97,123.93,8.069]
[1743572125104,0.063,123.97,123.93,8.069]
[1743572128203,0.063,123.97,123.92,7.8382]
[1743572128502,0.14216157,123.95,123.92,7.8382]
[1743572129780,24.64891424,123.97,123.92,15.9078]
[1743572129985,24.64891424,123.97,123.92,7.8382]
[1743572131284,0.14216157,123.95,123.92,15.9078]
[1743572131899,0.063,123.97,123.92,7.8382]
[1743572132204,0.14216157,123.96,123.92,7.8382]
[1743572132782,18.933972,123.96,123.92,7.8382]
[1743572133010,0.28432314,123.93,123.91,0.03]
[1743572133190,24.58831424,123.93,123.91,0.03]
[1743572133586,8.35352314,123.93,123.91,0.03]
[1743572134219,24.58831424,123.93,123.91,0.03]
[1743572134419,0.28432314,123.93,123.91,0.03]
[1743572134588,0.28432314,123.94,123.91,0.03]
[1743572136322,0.14216157,123.94,123.91,0.03]
[1743572137721,0.28432314,123.94,123.91,0.03]
[1743572138393,16.51911424,123.94,123.91,0.03]
[1743572139885,0.28432314,123.94,123.91,0.03]
[1743572140598,28.66714151,123.97,123.91,0.03]
[1743572140790,0.28432314,123.96,123.91,0.03]
[1743572141193,0.14216157,123.94,123.91,0.03]
[1743572143615,80.84216157,123.96,123.91,0.03]
[1743572144195,0.063,123.97,123.91,7.65]
[1743572145617,0.063,123.97,123.92,8.0697]
[1743572148626,0.14216157,123.94,123.91,8.1001]
[1743572148829,0.28432314,123.94,123.91,0.03]
[1743572149626,8.35272314,123.94,123.91,0.03]
[1743572150214,33.74469231,123.94,123.91,0.03]
[1743572150945,33.33943831,123.94,123.91,0.03]
[1743572152745,0.14216157,123.93,123.91,0.03]
[1743572152914,0.28432314,123.93,123.91,0.03]
[1743572155128,8.35352314,123.93,123.91,0.03]
[1743572155336,33.74549231,123.93,123.91,0.03]
[1743572155644,33.74549231,123.93,123.89,7.3566]
[1743572156342,25.67629231,123.93,123.89,15.4282]
[1743572156745,0.28432314,123.93,123.89,15.4282]
[1743572157233,8.35352314,123.93,123.89,7.3566]
[1743572157437,33.74549231,123.93,123.89,7.3566]
[1743572158422,0.14216157,123.91,123.89,1.577]
[1743572159848,0.28432314,123.93,123.89,9.6486]
[1743572160019,0.14216157,123.93,123.9,6.1035]
[1743572160219,12.51151198,123.95,123.9,6.1035]
[1743572160418,0.14216157,123.94,123.9,6.1035]
[1743572161644,0.14216157,123.94,123.91,8.0703]
[1743572161854,0.14216157,123.94,123.9,14.1743]
[1743572162058,33.74469231,123.94,123.9,6.1035]
[1743572163228,33.74469231,123.94,123.89,1.607]
[1743572163435,0.14216157,123.92,123.89,1.607]
[1743572163754,8.35412314,123.92,123.89,1.607]
[1743572163949,8.35412314,123.92,123.89,0.03]
[1743572164533,33.74609231,123.92,123.89,0.03]
[1743572165852,0.14216157,123.9,123.89,0.03]
[1743572167047,0.28432314,123.92,123.89,0.03]
[1743572170955,8.35422314,123.92,123.89,0.03]
[1743572172475,24.60768094,123.92,123.89,0.03]
[1743572172773,0.14216157,123.9,123.89,0.03]
[1743572173073,35.1874298,123.9,123.89,0.03]
[1743572174175,100.201261,123.9,123.89,0.03]
[1743572174344,108.272261,123.9,123.89,0.03]
[1743572175672,77.86448744,123.9,123.89,0.03]
[1743572176354,0.28432314,123.86,123.83,0.03]
[1743572177364,25.71408086,123.86,123.83,0.03]
[1743572178974,0.14216157,123.84,123.83,0.03]
[1743572184171,0.14216157,123.85,123.83,0.03]
[1743572184371,80.7,123.89,123.83,0.03]
[1743572184574,0.28432314,123.88,123.83,0.03]
[1743572186579,25.71408086,123.88,123.83,0.03]
[1743572188878,25.71408086,123.88,123.83,0.03]
[1743572189683,0.28432314,123.88,123.83,0.03]
[1743572190283,0.28432314,123.88,123.85,6.49]
[1743572190594,0.14216157,123.88,123.85,6.49]
[1743572191769,0.14216157,123.9,123.85,6.49]
[1743572192170,0.28432314,123.91,123.86,8.0736]
[1743572193887,0.14216157,123.91,123.86,28.2576]
[1743572194079,0.14216157,123.92,123.87,1.5272]
[1743572194306,0.063,123.94,123.88,6.0264]
[1743572194593,0.063,123.94,123.88,13.6464]
[1743572195472,0.063,123.94,123.89,28.2507]
[1743572197101,0.063,123.94,123.9,1.5309]
[1743572197298,0.063,123.94,123.91,6.5464]
[1743572197597,0.063,123.94,123.92,8.0697]
[1743572203696,0.063,123.94,123.91,14.6165]
[1743572206386,0.063,123.94,123.91,34.7924]
[1743572211004,0.063,123.97,123.95,20.0]
[1743572211210,0.063,123.97,123.96,6.2189]
[1743572212415,0.063,123.97,123.96,14.286]
[1743572213010,0.063,123.97,123.95,15.6673]
[1743572216483,25.57934061,123.97,123.93,1.5884]
[1743572216702,25.57934061,123.97,123.93,9.6572]
[1743572216983,25.57934061,123.97,123.93,8.0688]
[1743572217313,0.34732314,123.97,123.93,8.0688]
[1743572217682,0.20516157,123.97,123.93,8.0688]
[1743572220715,0.063,123.97,123.93,8.0688]
[1743572221390,0.063,123.97,123.94,1.5653]
[1743572222919,0.063,123.97,123.95,8.0677]
[1743572227213,0.063,123.97,123.94,9.6334]
[1743572227919,0.063,123.97,123.94,29.8044]
[1743572228905,0.063,123.97,123.94,8.0681]
[1743572229621,0.20516157,123.97,123.93,8.0688]
[1743572229921,0.14216157,123.95,123.92,8.0694]
[1743572230123,0.14216157,123.95,123.91,9.5724]
[1743572230318,16.24159528,123.94,123.89,14.4269]
[1743572230526,0.14216157,123.94,123.89,14.4269]
[1743572230705,0.28432314,123.94,123.89,14.4269]
[1743572235530,24.59441842,123.94,123.89,8.1014]
[1743572235950,0.14216157,123.91,123.89,0.03]
[1743572238240,0.28432314,123.91,123.89,0.03]
[1743572238439,24.59631842,123.91,123.89,0.03]
[1743572239948,0.28432314,123.91,123.89,0.03]
[1743572240439,115.87556728,123.9,123.89,0.03]
[1743572240943,180.8419484,123.9,123.89,0.03]
[1743572241126,115.87556728,123.9,123.89,0.03]
[1743572242130,0.14216157,123.89,123.85,0.03]
[1743572242338,0.14216157,123.87,123.85,0.03]
[1743572242643,14.39637161,123.88,123.85,0.03]
[1743572243741,25.42055358,123.88,123.85,0.03]
[1743572243923,107.42084886,123.9,123.85,0.03]
[1743572244244,25.42055358,123.89,123.85,0.03]
[1743572244847,25.70487672,123.88,123.85,0.03]
[1743572245228,0.28432314,123.88,123.85,0.03]
[1743572246029,25.70487672,123.88,123.85,0.03]
[1743572246350,25.42055358,123.87,123.85,0.03]
[1743572246550,0.28432314,123.86,123.85,0.03]
[1743572248333,52.42752558,123.87,123.85,0.03]
[1743572248541,25.42055358,123.86,123.85,0.03]
[1743572250445,52.42812558,123.86,123.85,0.03]
[1743572250660,44.35452558,123.86,123.85,0.03]
[1743572252262,52.42812558,123.86,123.85,0.03]
[1743572256937,20.28432314,123.84,123.83,0.03]
[1743572257653,45.70487672,123.84,123.83,0.03]
[1743572258470,64.35452558,123.84,123.83,0.03]
[1743572258664,72.42942558,123.84,123.83,0.03]
[1743572259775,64.35452558,123.84,123.83,0.03]
[1743572262075,72.42942558,123.84,123.83,0.03]
[1743572262981,47.008872,123.84,123.83,0.03]
[1743572263152,72.42942558,123.84,123.83,0.03]
[1743572265678,63.29192888,123.84,123.83,0.03]
[1743572271775,18.933972,123.83,123.82,0.03]
[1743572272576,18.933972,123.83,123.78,0.03]
[1743572272760,0.28432314,123.81,123.78,0.03]
[1743572277000,43.29392888,123.81,123.78,0.03]
[1743572277283,18.933972,123.79,123.78,0.03]
[1743572277457,18.933972,123.79,123.76,1.6856]
[1743572277458,38.933972,123.77,123.76,0.03]
[1743572277656,55.21702888,123.77,123.76,0.03]
[1743572278287,63.29652888,123.77,123.76,0.03]
[1743572280065,55.21702888,123.77,123.76,0.03]
[1743572280582,18.933972,123.76,123.73,0.03]
[1743572280793,0.28432314,123.74,123.73,0.03]
[1743572281294,35.21702888,123.76,123.73,0.03]
[1743572281465,0.28432314,123.76,123.73,0.03]
[1743572283190,0.28432314,123.8,123.75,6.1783]
[1743572285094,0.28432314,123.8,123.76,8.0801]
[1743572285883,16.56738002,123.8,123.76,8.0801]
[1743572286085,0.28432314,123.8,123.76,8.0801]
[1743572286281,16.56738002,123.8,123.76,8.0801]
[1743572288891,0.28432314,123.78,123.75,14.2589]
[1743572289482,16.56738002,123.77,123.74,1.6515]
[1743572289670,0.28432314,123.75,123.73,0.03]
[1743572290178,0.28432314,123.75,123.73,8.112]
[1743572290789,16.56738002,123.74,123.73,0.03]
[1743572290995,36.56738002,123.74,123.73,0.03]
[1743572291491,20.28432314,123.74,123.73,0.03]
[1743572292293,55.21702888,123.74,123.73,0.03]
[1743572293795,63.29842888,123.74,123.73,0.03]
[1743572294599,55.21702888,123.74,123.73,0.03]
[1743572296069,63.29842888,123.74,123.73,0.03]
[1743572297095,55.21702888,123.74,123.73,0.03]
[1743572297276,63.29842888,123.74,123.73,0.03]
[1743572297902,55.21702888,123.74,123.73,0.03]
[1743572299202,63.29842888,123.74,123.73,0.03]
[1743572300499,20.28432314,123.74,123.73,0.03]
[1743572301609,36.56738002,123.74,123.73,0.03]
[1743572301782,63.29842888,123.74,123.73,0.03]
[1743572304187,63.79842888,123.74,123.73,0.03]
[1743572304904,38.933972,123.71,123.7,0.03]
[1743572305097,55.21702888,123.71,123.7,0.03]
[1743572305905,63.30042888,123.71,123.7,0.03]
[1743572307283,38.933972,123.71,123.7,0.03]
[1743572308099,0.28432314,123.71,123.7,0.03]
[1743572308303,0.14216157,123.72,123.7,0.03]
[1743572309198,0.28432314,123.72,123.7,0.03]
[1743572319610,16.56738002,123.72,123.7,0.03]
[1743572321008,0.28432314,123.72,123.7,0.03]
[1743572323488,0.063,123.73,123.71,6.657]
[1743572324708,0.063,123.73,123.72,8.0827]
[1743572325211,0.063,123.73,123.71,14.7401]
[1743572325510,0.063,123.73,123.71,6.657]
[1743572326611,0.063,123.73,123.71,14.7402]
[1743572330689,0.063,123.73,123.71,6.657]
[1743572331998,0.063,123.73,123.72,1.599]
[1743572332917,0.063,123.76,123.72,1.599]
[1743572336123,0.063,123.76,123.73,28.2873]
[1743572336312,0.063,123.76,123.74,14.0759]
[1743572336514,0.063,123.76,123.75,1.5936]
[1743572338128,0.063,123.76,123.75,9.6744]
[1743572339624,0.063,123.8,123.75,29.8764]
[1743572340019,0.063,123.8,123.76,6.1833]
[1743572341526,0.063,123.8,123.77,8.0795]
[1743572341932,0.063,123.8,123.76,14.2631]
[1743572342808,0.063,123.8,123.76,34.4634]
[1743572343925,0.063,123.8,123.77,20.24644886]
[1743572344113,0.063,123.8,123.78,6.0634]
[1743572344323,0.063,123.8,123.79,7.58]
[1743572345109,0.063,123.8,123.78,86.9634]
[1743572345934,0.063,123.8,123.79,8.0781]
[1743572347125,0.063,123.86,123.8,1.5201]
[1743572347319,0.063,123.86,123.81,6.518]
[1743572348036,0.063,123.86,123.82,8.0762]
[1743572348205,0.063,123.86,123.81,6.518]
[1743572348613,0.063,123.86,123.81,14.5946]
[1743572349026,0.063,123.86,123.82,7.58]
[1743572350137,0.063,123.86,123.83,8.0755]
[1743572350441,0.063,123.86,123.82,15.6559]
[1743572351526,0.063,123.86,123.82,35.8464]
[1743572355233,0.063,123.86,123.82,15.6559]
[1743572355617,0.063,123.86,123.81,14.5947]
[1743572356123,0.28432314,123.83,123.8,7.58]
[1743572356324,0.28432314,123.83,123.79,8.0779]
[1743572356731,0.28432314,123.83,123.78,9.6188]
[1743572357046,8.36012314,123.83,123.78,9.6188]
[1743572357341,24.64318002,123.83,123.78,1.5401]
[1743572357544,8.36012314,123.83,123.78,1.5401]
[1743572357714,0.28432314,123.83,123.78,1.5401]
[1743572357921,16.56738002,123.83,123.78,1.5401]
[1743572358445,18.64964886,123.82,123.77,6.3251]
[1743572358616,0.28432314,123.81,123.75,9.6269]
[1743572358818,0.28432314,123.79,123.75,1.5463]
[1743572359021,0.28432314,123.77,123.72,1.5463]
[1743572359637,0.28432314,123.79,123.72,9.6288]
[1743572359825,0.28432314,123.79,123.72,29.8357]
[1743572360025,80.7,123.8,123.72,29.8357]
[1743572360344,0.28432314,123.81,123.72,110.7357]
[1743572360849,0.28432314,123.81,123.73,18.64964886]
[1743572361137,80.7,123.83,123.75,28.2828]
[1743572361340,97.04605688,123.86,123.77,1.6251]
[1743572361542,16.34605688,123.86,123.78,18.64964886]
[1743572361714,16.34605688,123.86,123.79,6.2348]
[1743572361715,0.34732314,123.86,123.79,6.2348]
[1743572363031,0.34732314,123.86,123.8,8.0775]
[1743572363344,0.063,123.86,123.81,7.58]
[1743572363534,0.063,123.86,123.81,88.48]
[1743572364123,0.063,123.86,123.83,1.5065]
[1743572365225,0.063,123.86,123.84,8.0749]
[1743572366343,0.063,123.86,123.83,82.4065]
[1743572366525,0.063,123.86,123.83,90.482]
[1743572367947,0.063,123.86,123.84,18.64964886]
[1743572368126,0.063,123.86,123.85,24.82324886]
[1743572369151,0.063,123.86,123.85,113.79744886]
[1743572369651,0.063,123.89,123.86,38.933972]
[1743572369820,0.063,123.89,123.87,26.22964886]
[1743572370228,0.063,123.89,123.88,18.64964886]
[1743572370647,0.063,123.89,123.88,1.522]
[1743572371241,0.063,123.89,123.85,14.2476]
[1743572371981,0.063,123.89,123.86,18.64964886]
[1743572372467,0.063,123.89,123.85,14.2476]
[1743572372770,25.42354115,123.88,123.82,6.4697]
[1743572372939,25.62870272,123.89,123.83,38.0755]
[1743572373284,0.063,123.89,123.83,38.0755]
[1743572373456,0.063,123.89,123.84,18.64964886]
[1743572374150,0.063,123.89,123.83,88.9755]
[1743572375874,0.063,123.89,123.84,18.64964886]
[1743572376278,0.063,123.89,123.83,109.1644]
[1743572376580,0.063,123.89,123.84,18.64964886]
[1743572377254,0.063,123.89,123.85,28.2599]
[1743572377455,0.063,123.89,123.87,18.64964886]
[1743572377649,0.063,123.89,123.88,6.1924]
[1743572377855,0.063,123.89,123.88,105.74204886]
[1743572378055,0.063,123.89,123.88,125.74204886]
[1743572378474,0.063,123.89,123.88,126.026372]
[1743572378679,0.063,123.89,123.88,125.74204886]
[1743572379249,0.063,123.89,123.88,133.81434886]
[1743572380153,0.063,123.89,123.88,113.81434886]
[1743572382877,0.063,123.89,123.88,95.1647]
[1743572383089,0.063,123.89,123.88,80.9]
[1743572383387,0.063,123.89,123.87,1.5142]
[1743572384066,0.063,123.89,123.87,9.5871]
[1743572389663,0.063,123.89,123.87,9.6171]
[1743572390576,0.063,123.89,123.87,0.03]
[1743572395388,0.063,123.89,123.87,18.67964886]
[1743572395983,0.063,123.89,123.88,20.0]
[1743572397394,0.063,123.89,123.88,8.0723]
[1743572402504,0.063,123.89,123.87,8.1027]
[1743572403400,0.063,123.89,123.87,0.03]
[1743572418313,0.063,123.93,123.89,18.64964886]
[1743572418520,0.063,123.93,123.89,99.54964886]
[1743572418718,0.063,123.93,123.89,80.9]
[1743572419407,0.063,123.93,123.88,15.699]
[1743572419602,16.53699488,123.92,123.87,8.1024]
[1743572419803,0.34732314,123.93,123.87,8.1024]
[1743572420793,0.063,123.93,123.87,28.2848]
[1743572423092,0.063,123.93,123.87,109.1848]
[1743572423596,0.063,123.93,123.87,129.1848]
[1743572423899,0.063,123.93,123.88,18.64964886]
[1743572425625,0.063,123.93,123.89,8.0716]
[1743572426414,0.063,123.93,123.88,8.0723]
[1743572426815,25.46555893,123.93,123.88,8.0723]
[1743572427036,0.063,123.93,123.88,8.0723]
[1743572427698,33.53455893,123.93,123.88,8.0723]
[1743572428233,25.46555893,123.93,123.88,8.0723]
[1743572429115,0.063,123.93,123.88,8.0723]
[1743572429699,0.063,123.93,123.87,8.1029]
[1743572430811,0.063,123.93,123.87,28.2853]
[1743572434726,0.063,123.93,123.87,109.1853]
[1743572440230,0.063,123.93,123.87,89.0029]
[1743572440615,0.063,123.93,123.87,8.1029]
[1743572441516,0.063,123.93,123.87,15.6429]
[1743572441729,0.34732314,123.93,123.87,15.6429]
[1743572443221,8.41652314,123.93,123.87,15.6429]
[1743572449651,24.6679817,123.93,123.87,15.6429]
[1743572454320,8.41652314,123.93,123.87,15.6429]
[1743572456023,8.41652314,123.93,123.87,8.1029]
[1743572456240,0.34732314,123.93,123.87,8.1029]
[1743572456443,0.063,123.93,123.87,28.2853]
[1743572456650,0.063,123.93,123.88,20.30984886]
[1743572456813,0.063,123.93,123.89,6.5724]
[1743572457241,0.063,123.93,123.89,87.4724]
[1743572457443,0.063,123.93,123.9,18.64964886]
[1743572457639,0.063,123.93,123.91,7.54]
[1743572458148,0.063,123.93,123.92,8.0697]
[1743572458655,0.063,123.93,123.91,88.44]
[1743572458656,0.063,123.93,123.91,96.5101]
[1743572460040,0.063,123.93,123.91,88.9701]
[1743572460840,0.063,123.93,123.92,18.64964886]